[Event "FIDE World Cup O12-B 2024"]
[Site "Batumi"]
[Date "2024.06.24"]
[Round "2.7"]
[White "Ibrahimli, Suat"]
[Black "Akhmet, Suleyman"]
[Result "0-1"]
[ECO "E67"]
[WhiteElo "1852"]
[BlackElo "1793"]
[Annotator "NA RC"]
[PlyCount "68"]
[EventDate "2024.06.23"]
[EventType "swiss"]
[EventCountry "GEO"]
[SourceTitle "playchess.com"]
[Source "ChessBase"]
[SourceQuality "1"]
[TimeControl "5400+30"]

1. d4 {[%emt 0:00:05]} Nf6 {[%emt 0:00:07]} 2. c4 {[%emt 0:00:04]} g6 {[%emt 0:00:03]} 3. Nc3 {[%emt 0:00:05]} Bg7 {[%emt 0:00:03]} 4. g3 {[%emt 0:00:04]} d6 {[%emt 0:00:19]} 5. Nf3 {[%emt 0:00:06]} O-O {[%emt 0:00:05]} 6. Bg2 {[%emt 0:00:05]} Nbd7 {[%emt 0:00:43]} 7. O-O {[%emt 0:00:04]} e5 {[%emt 0:00:10]} 8. Qc2 {[%emt 0:00:04]} Re8 {[%emt 0:06:16]} 9. Rd1 {[%emt 0:00:16]} a5 {[%emt 0:09:46] E67: King's Indian: Fianchetto: 6...Nbd7.} 10. dxe5 {[%emt 0:02:26]} dxe5 {[%emt 0:00:06]} 11. e4 {[%emt 0:00:10]} c6 {[%emt 0:00:14]} 12. Be3 {[%emt 0:00:27]} Qe7 {[%emt 0:00:57]} 13. a3 {[%emt 0:04:20]} Nf8 {[%emt 0:10:04]} 14. c5 {[%emt 0:05:57]} Ng4 {[%emt 0:01:49]} 15. Qe2 {[%emt 0:02:31]} Nxe3 {[%emt 0:01:18]} 16. Qxe3 {[%emt 0:00:12]} Ne6 {[%emt 0:00:08]} 17. Na4 {[%emt 0:10:59]} Nd4 {[%emt 0:09:05]} 18. Nxd4 {[%emt 0:02:39]} exd4 {[%emt 0:01:18]} 19. Qd3 {[%emt 0:00:12]} Be6 {[%emt 0:06:48]} 20. f4 {[%emt 0:01:05]} Rad8 {[%emt 0:01:21]} 21. Rd2 {[%emt 0:01:02]} f5 {[%emt 0:05:01]} 22. e5 {[%emt 0:03:44]} g5 {[%emt 0:00:23]} 23. Rad1 {[%emt 0:01:46]} gxf4 {[%emt 0:02:22]} 24. gxf4 {[%emt 0:00:06]} Qf7 {[%emt 0:00:12]} 25. Nb6 {[%emt 0:01:18]} Bb3 {[%emt 0:01:24]} 26. Rc1 {[%emt 0:01:10]} Bh6 {[%emt 0:01:57]} 27. Rf2 $11 {[%emt 0:02:16]} Kh8 {[%emt 0:22:45]} 28. Nc4 {[%emt 0:12:36]} Bxc4 {[%emt 0:00:19]} 29. Rxc4 {[%emt 0:00:04]} Qd7 {[%emt 0:00:30]} 30. Kf1 {[%emt 0:06:24]} Rg8 {[%emt 0:06:20]} 31. Bh3 {[%emt 0:33:46]} Qd5 {[%emt 0:01:20]} 32. Rf3 {[%emt 0:04:38]} Rgf8 {[%emt 0:03:22]} 33. Bg2 {[%emt 0:03:21]} Qe4 {[%emt 0:00:40]} 34. Qd2 {[%emt 0:02:44]} Rg8 {[%emt 0:06:43]} 0-1

[Event "FIDE World Cup O12-B 2024"]
[Site "Batumi"]
[Date "2024.06.24"]
[Round "2.8"]
[White "Golikov, Ivan"]
[Black "Martinez Flores, Matias"]
[Result "1-0"]
[ECO "D35"]
[WhiteElo "1723"]
[BlackElo "2080"]
[Annotator "NA RC"]
[PlyCount "101"]
[EventDate "2024.06.23"]
[EventType "swiss"]
[EventCountry "GEO"]
[SourceTitle "playchess.com"]
[Source "ChessBase"]
[SourceQuality "1"]
[TimeControl "5400+30"]

1. d4 {[%emt 0:01:05]} d5 {[%emt 0:00:08]} 2. c4 {[%emt 0:00:37]} e6 {[%emt 0:00:07]} 3. Nc3 {[%emt 0:00:05]} Nf6 {[%emt 0:00:06]} 4. cxd5 {[%emt 0:00:05]} exd5 {[%emt 0:00:07]} 5. Bg5 {[%emt 0:00:08]} Bb4 {[%emt 0:00:09]} 6. Qb3 {[%emt 0:00:20] D35: Queen's Gambit Declined: Exchange Variation.} Bxc3+ {[%emt 0:08:09] 6...c5 is a critical line.} 7. Qxc3 {[%emt 0:00:31]} Nbd7 {[%emt 0:00:07]} 8. Nf3 {[%emt 0:02:55]} h6 {[%emt 0:03:39]} 9. Bf4 {[%emt 0:01:02]} c6 {[%emt 0:00:11]} 10. e3 {[%emt 0:01:32]} Ne4 {[%emt 0:01:36]} 11. Qc2 {[%emt 0:07:05]} g5 $146 {[%emt 0:01:54]} ({Predecessor:} 11... Ndf6 12. Bd3 Nh5 13. Be5 f6 14. Bxe4 fxe5 15. Bg6+ Ke7 16. Bxh5 Qf8 17. Nxe5 Bf5 {1-0 Caridi,N-De la Luz,J LSS BI-2007-P-00003}) 12. Bg3 {[%emt 0:03:54]} h5 {[%emt 0:00:25]} 13. Nd2 {[%emt 0:04:55]} Nxd2 {[%emt 0:11:14]} 14. Qxd2 {[%emt 0:01:00]} h4 {[%emt 0:01:30]} 15. Bd6 {[%emt 0:02:00]} Nf6 {[%emt 0:00:11]} 16. Bb4 {[%emt 0:03:02]} Ne4 {[%emt 0:02:37]} 17. Qc2 {[%emt 0:01:21]} a5 {[%emt 0:02:35]} 18. Ba3 {[%emt 0:03:27]} h3 {[%emt 0:12:23]} 19. f3 {[%emt 0:06:57]} hxg2 {[%emt 0:01:29]} 20. Bxg2 {[%emt 0:00:58]} (20. Qxg2 $11 {feels stronger.} Bh3 21. Qe2) 20... Nd6 {[%emt 0:01:01]} 21. b3 {[%emt 0:13:03] [#]} a4 $17 {[%emt 0:09:25]} 22. O-O {[%emt 0:15:45]} Nb5 {[%emt 0:04:03]} 23. Bb4 {[%emt 0:02:52]} Qc7 {[%emt 0:02:01]} 24. f4 {[%emt 0:03:34]} axb3 {[%emt 0:07:06]} 25. Qxb3 {[%emt 0:05:10]} Bh3 {[%emt 0:07:45]} 26. Be1 {[%emt 0:05:36]} Bxg2 {[%emt 0:02:50]} 27. Kxg2 {[%emt 0:00:17]} Ra3 {[%emt 0:00:06]} 28. Qb4 {[%emt 0:04:07]} Rxe3 {[%emt 0:01:17]} 29. a4 {[%emt 0:03:33]} Nd6 {[%emt 0:12:12]} 30. Bg3 {[%emt 0:01:10]} Ne4 {[%emt 0:01:00]} 31. Rae1 {[%emt 0:01:01]} Rd3 {[%emt 0:01:27]} 32. Re2 {[%emt 0:02:04]} Kd8 {[%emt 0:00:47]} 33. Rxe4 {[%emt 0:02:32]} dxe4 {[%emt 0:00:54]} 34. fxg5 {[%emt 0:00:12]} Qe7 {[%emt 0:05:27]} 35. Qa5+ {[%emt 0:00:50]} Ke8 {[%emt 0:00:58]} 36. Qa8+ {[%emt 0:00:57]} Qd8 {[%emt 0:00:03]} 37. Qxb7 {[%emt 0:00:18]} Rd2+ {[%emt 0:01:08]} 38. Kh1 {[%emt 0:00:26]} Rf8 {[%emt 0:00:39]} 39. Qxc6+ {[%emt 0:00:56]} Qd7 {[%emt 0:00:17]} 40. Qxe4+ {[%emt 0:00:42]} Kd8 {[%emt 0:00:05]} 41. Qa8+ {[%emt 0:00:18]} Ke7 {[%emt 0:00:42]} 42. Re1+ {[%emt 0:00:26]} Qe6 {[%emt 0:00:08]} 43. Rxe6+ {[%emt 0:00:06]} fxe6 {[%emt 0:00:03]} 44. Qb7+ {[%emt 0:00:16]} Ke8 {[%emt 0:00:06]} 45. Qc6+ {[%emt 0:00:51]} Kf7 {[%emt 0:00:05]} 46. Qd7+ {[%emt 0:00:16]} Kg6 {[%emt 0:00:24]} 47. Qxe6+ {[%emt 0:00:19]} Kh5 {[%emt 0:00:06]} 48. Qh6+ {[%emt 0:00:25]} Kg4 {[%emt 0:00:06]} 49. Qxf8 {[%emt 0:00:16]} Rd1+ {[%emt 0:00:19]} 50. Kg2 {[%emt 0:00:06]} Rd2+ {[%emt 0:00:15]} 51. Bf2 {[%emt 0:04:37]} 1-0

[Event "FIDE World Cup O12-B 2024"]
[Site "Batumi"]
[Date "2024.06.24"]
[Round "2.9"]
[White "Atar, Semih Akif"]
[Black "Diaz Guerrero, Jesus Daniel"]
[Result "0-1"]
[ECO "A13"]
[WhiteElo "1660"]
[BlackElo "2032"]
[Annotator "NA RC"]
[PlyCount "42"]
[EventDate "2024.06.23"]
[EventType "swiss"]
[EventCountry "GEO"]
[SourceTitle "playchess.com"]
[Source "ChessBase"]
[SourceQuality "1"]
[TimeControl "5400+30"]

1. c4 {[%emt 0:00:32]} e6 {[%emt 0:00:07]} 2. g3 {[%emt 0:00:52]} d5 {[%emt 0:00:07]} 3. Bg2 {[%emt 0:00:05]} d4 {[%emt 0:00:04]} 4. Nf3 {[%emt 0:00:12]} Nf6 {[%emt 0:00:07]} 5. e3 {[%emt 0:00:18]} c5 {[%emt 0:02:00]} 6. O-O {[%emt 0:00:16]} Nc6 {[%emt 0:00:05]} 7. exd4 {[%emt 0:00:30]} cxd4 {[%emt 0:00:06]} 8. d3 {[%emt 0:00:07]} h6 {[%emt 0:00:05]} 9. Bf4 {[%emt 0:02:49]} Bd6 {[%emt 0:00:07]} 10. Bxd6 {[%emt 0:11:00]} Qxd6 {[%emt 0:00:10]} 11. Na3 {[%emt 0:04:01]} O-O {[%emt 0:13:19]} 12. Nc2 {[%emt 0:01:01]} a5 {[%emt 0:04:02]} 13. Re1 {[%emt 0:04:15]} e5 {[%emt 0:08:43]} 14. Re2 {[%emt 0:02:40]} (14. Na3 $11 {remains equal.}) 14... Bf5 {[%emt 0:01:36]} 15. Nh4 {[%emt 0:09:53]} (15. Na3 $15) 15... Bh7 {[%emt 0:14:29]} 16. Qd2 {[%emt 0:10:51]} Nd7 {[%emt 0:08:00]} 17. Bd5 {[%emt 0:15:06]} Nc5 {[%emt 0:01:29]} 18. Be4 $19 {[%emt 0:02:21]} Bxe4 {[%emt 0:17:05]} 19. dxe4 {[%emt 0:00:10]} Qe6 {[%emt 0:00:05]} 20. b4 {[%emt 0:02:28]} axb4 {[%emt 0:01:06]} 21. Nxb4 {[%emt 0:00:20]} Nb3 {[%emt 0:00:51]} 0-1

[Event "FIDE World Cup O12-B 2024"]
[Site "Batumi"]
[Date "2024.06.24"]
[Round "2.10"]
[White "Suleymanov, Askhab"]
[Black "Pirtac, Alexandru"]
[Result "1/2-1/2"]
[ECO "B21"]
[WhiteElo "1630"]
[BlackElo "1977"]
[Annotator "NA RC"]
[PlyCount "155"]
[EventDate "2024.06.23"]
[EventType "swiss"]
[EventCountry "GEO"]
[SourceTitle "playchess.com"]
[Source "ChessBase"]
[SourceQuality "1"]
[TimeControl "5400+30"]

1. e4 {[%emt 0:00:02]} c5 {[%emt 0:09:48]} 2. d4 {[%emt 0:00:13]} cxd4 {[%emt 0:00:41]} 3. c3 {[%emt 0:00:33]} e5 {[%emt 0:01:50]} 4. Nf3 {[%emt 0:00:52]} Nf6 {[%emt 0:03:28]} 5. Bc4 {[%emt 0:18:02]} d5 {[%emt 0:01:41]} 6. exd5 {[%emt 0:05:27]} Bd6 {[%emt 0:04:32]} 7. cxd4 {[%emt 0:20:22]} Bg4 {[%emt 0:04:45]} ({Black should play} 7... Nbd7 $14) 8. dxe5 {[%emt 0:09:26]} Bxe5 {[%emt 0:00:47] [#]} 9. Qa4+ $1 {[%emt 0:06:45]} Bd7 {[%emt 0:04:56]} 10. Qb3 {[%emt 0:08:17]} Bd6 {[%emt 0:09:28]} 11. O-O {[%emt 0:05:01]} O-O $18 {[%emt 0:02:34]} 12. Qxb7 {[%emt 0:06:06]} Bg4 {[%emt 0:04:00]} 13. Nbd2 {[%emt 0:03:18]} Nbd7 {[%emt 0:00:56]} 14. Qb3 {[%emt 0:01:07]} Nb6 {[%emt 0:02:42]} 15. h3 {[%emt 0:02:21]} Bh5 {[%emt 0:00:38]} 16. Qd3 {[%emt 0:06:11]} Nfxd5 {[%emt 0:02:46]} 17. Bxd5 {[%emt 0:00:36]} Nxd5 {[%emt 0:00:05]} 18. Nc4 {[%emt 0:02:12]} Bb8 {[%emt 0:00:42]} 19. Rd1 {[%emt 0:00:37]} Qc7 {[%emt 0:06:59]} 20. Qxd5 {[%emt 0:02:18]} Bxf3 {[%emt 0:00:12]} 21. gxf3 {[%emt 0:00:12]} Qh2+ {[%emt 0:00:52]} 22. Kf1 {[%emt 0:00:06]} Bc7 {[%emt 0:00:55]} 23. Be3 {[%emt 0:01:00]} Rfe8 {[%emt 0:02:06]} 24. Qg5 {[%emt 0:00:43]} Qxh3+ {[%emt 0:00:44]} 25. Ke2 {[%emt 0:00:05]} Qe6 {[%emt 0:00:42]} 26. Rac1 {[%emt 0:00:22]} f5 {[%emt 0:01:08]} 27. f4 {[%emt 0:01:11]} h6 {[%emt 0:00:46]} 28. Qg2 {[%emt 0:00:14]} Rad8 {[%emt 0:01:27]} 29. Qf3 {[%emt 0:00:41]} Rxd1 {[%emt 0:02:50]} 30. Kxd1 {[%emt 0:00:06]} Rd8+ {[%emt 0:00:09]} 31. Ke2 {[%emt 0:00:48]} Qd7 {[%emt 0:00:52]} 32. Kf1 {[%emt 0:00:19]} g5 {[%emt 0:01:06]} 33. Ne5 {[%emt 0:00:50]} Bxe5 {[%emt 0:01:04]} 34. fxe5 {[%emt 0:00:14]} f4 {[%emt 0:09:16]} 35. Bc5 {[%emt 0:00:19]} Qf5 {[%emt 0:02:20]} 36. Bd6 {[%emt 0:00:41]} Re8 {[%emt 0:05:53]} 37. Rc7 {[%emt 0:00:41]} g4 {[%emt 0:00:39]} 38. Qd5+ {[%emt 0:00:10]} Kh8 {[%emt 0:00:49]} 39. Rc1 {[%emt 0:00:53]} f3 {[%emt 0:01:59]} 40. Qd4 {[%emt 0:00:27]} g3 {[%emt 0:05:27]} 41. e6+ {[%emt 0:00:38]} Kg8 {[%emt 0:00:44]} 42. Bxg3 {[%emt 0:00:23]} Qh3+ {[%emt 0:00:13]} 43. Ke1 {[%emt 0:00:08]} Qxe6+ {[%emt 0:00:25]} 44. Be5 {[%emt 0:00:47]} Qxe5+ {[%emt 0:01:21]} 45. Qxe5 {[%emt 0:00:01]} Rxe5+ {[%emt 0:00:08]} 46. Kf1 {[%emt 0:00:07]} Re2 {[%emt 0:00:06]} 47. Rc8+ {[%emt 0:00:41]} Kg7 {[%emt 0:00:36]} 48. Rc7+ {[%emt 0:00:45]} Kg6 {[%emt 0:00:13]} 49. Kg1 {[%emt 0:01:01]} Kg5 {[%emt 0:01:09]} 50. Kh2 {[%emt 0:00:31]} Rxf2+ {[%emt 0:00:40]} 51. Kg3 {[%emt 0:00:07]} Rxb2 {[%emt 0:00:08]} 52. Rxa7 {[%emt 0:00:23]} f2 {[%emt 0:00:32]} 53. Ra5+ {[%emt 0:00:17]} Kf6 {[%emt 0:00:30]} 54. Kg2 {[%emt 0:00:18]} Kg6 {[%emt 0:00:12]} 55. Ra3 {[%emt 0:01:14]} Kg5 {[%emt 0:01:02]} 56. Rg3+ {[%emt 0:00:37]} Kh5 {[%emt 0:00:46]} 57. Rh3+ {[%emt 0:00:11]} Kg6 {[%emt 0:00:04]} 58. Rg3+ {[%emt 0:00:10]} Kh7 {[%emt 0:00:06]} 59. Rf3 {[%emt 0:01:10]} Rxa2 {[%emt 0:00:05]} 60. Rxf2 {[%emt 0:00:06]} Ra3 {[%emt 0:00:01]} 61. Rf3 {[%emt 0:00:19]} Ra4 {[%emt 0:00:01]} 62. Kg3 {[%emt 0:00:30]} Kg6 {[%emt 0:00:10]} 63. Rf8 {[%emt 0:00:22]} h5 {[%emt 0:00:28]} 64. Rg8+ {[%emt 0:00:09]} Kf5 {[%emt 0:00:41]} 65. Rf8+ {[%emt 0:00:16]} Kg6 {[%emt 0:00:07]} 66. Rg8+ {[%emt 0:00:08]} Kh7 {[%emt 0:00:02]} 67. Rg5 {[%emt 0:00:33]} Kh6 {[%emt 0:00:23]} 68. Rg8 {[%emt 0:00:27]} Ra1 {[%emt 0:00:20]} 69. Rh8+ {[%emt 0:00:30]} Kg6 {[%emt 0:00:10]} 70. Rg8+ {[%emt 0:00:10]} Kh7 {[%emt 0:00:05]} 71. Rb8 {[%emt 0:00:19]} Kg6 {[%emt 0:01:56]} 72. Rb6+ {[%emt 0:00:15]} Kf7 {[%emt 0:00:19]} 73. Rb5 {[%emt 0:00:14]} Kg6 {[%emt 0:00:10]} 74. Rb6+ {[%emt 0:00:07]} Kf7 {[%emt 0:00:30]} 75. Rb7+ {[%emt 0:00:09]} Ke6 {[%emt 0:00:15]} 76. Rb5 {[%emt 0:00:11]} Rh1 {[%emt 0:00:38]} 77. Kg2 {[%emt 0:00:23]} Rh4 {[%emt 0:00:03]} 78. Kg3 {[%emt 0:00:09]} 1/2-1/2

[Event "FIDE World Cup O12-B 2024"]
[Site "Batumi"]
[Date "2024.06.24"]
[Round "2.11"]
[White "Chia, Yu Zhe Ashton"]
[Black "Minkhajdarov, Ruslan"]
[Result "1-0"]
[ECO "B22"]
[WhiteElo "2229"]
[BlackElo "1921"]
[Annotator "RC"]
[PlyCount "97"]
[EventDate "2024.06.23"]
[EventType "swiss"]
[EventCountry "GEO"]
[SourceTitle "playchess.com"]
[Source "ChessBase"]
[SourceQuality "1"]
[TimeControl "5400+30"]

1. e4 {[%emt 0:00:05]} c5 {[%emt 0:00:08]} 2. Nf3 {[%emt 0:00:05]} e6 {[%emt 0:00:10]} 3. c3 {[%emt 0:00:14]} Nf6 {[%emt 0:01:10]} 4. e5 {[%emt 0:00:04]} Nd5 {[%emt 0:00:06]} 5. d4 {[%emt 0:00:05]} cxd4 {[%emt 0:00:42]} 6. cxd4 {[%emt 0:00:07]} b6 {[%emt 0:02:58]} 7. Nc3 {[%emt 0:02:00]} Nxc3 {[%emt 0:02:40]} 8. bxc3 {[%emt 0:00:08]} Qc7 {[%emt 0:00:38]} 9. Bd2 {[%emt 0:00:39]} Bb7 {[%emt 0:02:54]} 10. Bd3 {[%emt 0:00:09]} d6 {[%emt 0:05:26]} 11. O-O {[%emt 0:00:12]} Nd7 {[%emt 0:03:41]} 12. Bf4 {[%emt 0:00:28]} Be7 {[%emt 0:05:14]} 13. Re1 {[%emt 0:13:09]} O-O {[%emt 0:12:27]} 14. Qc2 {[%emt 0:07:10]} g6 {[%emt 0:04:34]} 15. Qe2 {[%emt 0:04:15]} dxe5 {[%emt 0:13:13]} 16. Nxe5 {[%emt 0:04:26]} Nxe5 {[%emt 0:03:11]} 17. Bxe5 {[%emt 0:02:42]} Qc6 {[%emt 0:01:48]} 18. Qg4 {[%emt 0:15:31]} Rfc8 {[%emt 0:23:59]} 19. Rac1 {[%emt 0:02:46]} Bf8 {[%emt 0:01:36]} 20. h4 {[%emt 0:00:46]} h5 {[%emt 0:06:01]} 21. Qg3 {[%emt 0:00:26]} Kh7 {[%emt 0:00:22]} 22. Rc2 {[%emt 0:05:39]} Bh6 {[%emt 0:00:57]} 23. f4 {[%emt 0:04:12]} Qd7 {[%emt 0:01:00]} 24. Qh3 {[%emt 0:04:24]} f5 {[%emt 0:01:41]} 25. Qe3 {[%emt 0:04:29]} Qe7 {[%emt 0:00:39]} 26. g3 {[%emt 0:01:39]} Bf8 {[%emt 0:00:54]} 27. Ree2 {[%emt 0:03:04]} Qd8 {[%emt 0:00:23]} 28. Rh2 {[%emt 0:02:33]} Be7 {[%emt 0:00:43]} 29. Be2 {[%emt 0:08:42]} Be4 {[%emt 0:00:47]} 30. Bd3 {[%emt 0:01:18]} Bb7 {[%emt 0:01:26]} 31. Be2 {[%emt 0:01:15]} Qe8 {[%emt 0:00:09]} 32. Bf3 {[%emt 0:02:44]} Bxf3 {[%emt 0:01:23]} 33. Qxf3 {[%emt 0:01:15]} Qb5 {[%emt 0:01:01]} 34. Qb7 {[%emt 0:10:49]} Re8 {[%emt 0:00:32]} 35. Rhd2 {[%emt 0:00:00]} Rad8 {[%emt 0:01:11]} 36. c4 {[%emt 0:00:00]} Qd7 {[%emt 0:01:05]} 37. Qxd7 {[%emt 0:00:00]} Rxd7 {[%emt 0:00:01]} 38. Kf1 {[%emt 0:00:00]} Rc8 {[%emt 0:00:44]} 39. c5 {[%emt 0:00:00]} Bd8 {[%emt 0:01:35]} 40. c6 {[%emt 0:00:00]} Rd5 {[%emt 0:00:01]} 41. c7 {[%emt 0:00:12]} Be7 {[%emt 0:00:16]} 42. Rc6 {[%emt 0:00:09]} Kg8 {[%emt 0:01:25]} 43. Rxe6 {[%emt 0:00:14]} Kf7 {[%emt 0:00:01]} 44. Rc6 {[%emt 0:00:12]} b5 {[%emt 0:00:15]} 45. Ra6 {[%emt 0:00:46]} Bc5 {[%emt 0:00:25]} 46. Rf6+ {[%emt 0:00:07]} Ke7 {[%emt 0:00:05]} 47. Rxg6 {[%emt 0:00:21]} Bb6 {[%emt 0:00:02]} 48. Rg7+ {[%emt 0:00:42]} Ke6 {[%emt 0:00:11]} 49. Rc2 {[%emt 0:00:10]} 1-0

[Event "FIDE World Cup O12-B 2024"]
[Site "Batumi"]
[Date "2024.06.24"]
[Round "2.12"]
[White "Cronje, Johannes Christiaan"]
[Black "Amangeldy, Ramazan"]
[Result "0-1"]
[ECO "A20"]
[WhiteElo "1504"]
[BlackElo "1740"]
[Annotator "NA RC"]
[PlyCount "160"]
[EventDate "2024.06.23"]
[EventType "swiss"]
[EventCountry "GEO"]
[SourceTitle "playchess.com"]
[Source "ChessBase"]
[SourceQuality "1"]
[TimeControl "5400+30"]

1. c4 {[%emt 0:00:03]} e5 {[%emt 0:00:06]} 2. g3 {[%emt 0:00:09]} d5 {[%emt 0:00:10]} 3. cxd5 {[%emt 0:00:15]} Qxd5 {[%emt 0:00:04]} 4. Nf3 {[%emt 0:00:08]} Nc6 {[%emt 0:00:07]} 5. Nc3 {[%emt 0:00:49]} Qd8 {[%emt 0:00:14]} 6. Bg2 {[%emt 0:00:38]} Nf6 {[%emt 0:00:04]} 7. d3 {[%emt 0:00:29]} Be7 {[%emt 0:00:28]} 8. O-O {[%emt 0:00:14]} O-O {[%emt 0:00:12]} 9. Be3 {[%emt 0:01:51]} Bg4 {[%emt 0:09:22]} 10. h3 {[%emt 0:01:20]} Bf5 {[%emt 0:00:19]} 11. Qb3 {[%emt 0:03:03]} Qc8 {[%emt 0:01:04]} 12. Kh2 {[%emt 0:00:59]} h6 {[%emt 0:00:44]} 13. d4 {[%emt 0:03:36]} exd4 {[%emt 0:02:13]} 14. Nxd4 {[%emt 0:00:22]} Nxd4 {[%emt 0:00:11]} 15. Bxd4 {[%emt 0:00:09]} c6 {[%emt 0:00:08]} 16. Rfd1 {[%emt 0:03:23]} Be6 {[%emt 0:07:19]} 17. Qc2 {[%emt 0:02:25]} Qc7 {[%emt 0:00:46]} 18. Rac1 {[%emt 0:02:00]} Qa5 {[%emt 0:00:33]} 19. a3 {[%emt 0:00:55]} Qh5 {[%emt 0:04:55]} 20. Ne4 {[%emt 0:05:44]} Nxe4 {[%emt 0:04:05]} 21. Qxe4 {[%emt 0:00:28]} Rfe8 {[%emt 0:00:07]} 22. Qe5 {[%emt 0:03:58]} Qxe5 {[%emt 0:00:35]} 23. Bxe5 {[%emt 0:00:11]} Rad8 {[%emt 0:00:05]} 24. e3 {[%emt 0:01:41]} Bb3 {[%emt 1:08:39]} 25. Rd4 {[%emt 0:01:57]} Rxd4 {[%emt 0:00:00]} 26. Bxd4 {[%emt 0:00:10]} a6 {[%emt 0:00:00]} 27. Rc3 {[%emt 0:02:30]} Be6 {[%emt 0:00:00]} 28. Bb6 {[%emt 0:01:08]} Bf6 {[%emt 0:00:00]} 29. Rc2 {[%emt 0:00:40]} Bd8 {[%emt 0:00:00]} 30. Bc5 {[%emt 0:02:50]} Bc7 {[%emt 0:00:00]} 31. Rd2 {[%emt 0:00:56]} Rd8 {[%emt 0:00:00]} 32. Rxd8+ {[%emt 0:00:17]} Bxd8 {[%emt 0:00:00]} 33. Bd4 {[%emt 0:01:15]} Be7 {[%emt 0:00:00]} 34. h4 {[%emt 0:01:04]} c5 {[%emt 0:00:00]} 35. Bc3 {[%emt 0:00:23]} b5 {[%emt 0:00:00]} 36. b4 {[%emt 0:01:38]} c4 {[%emt 0:00:00]} 37. Bb7 {[%emt 0:00:20]} f5 {[%emt 0:00:00]} 38. Bxa6 {[%emt 0:59:32]} Bd7 {[%emt 0:00:00]} 39. Bb7 {[%emt 0:00:00]} Bf6 {[%emt 0:00:00]} 40. Bxf6 {[%emt 0:00:00]} gxf6 {[%emt 0:00:00]} 41. Bf3 {[%emt 0:00:00]} c3 {[%emt 0:00:00]} 42. Bd1 {[%emt 0:00:00]} Bc6 {[%emt 0:00:00]} 43. Kg1 {[%emt 0:00:00]} Be4 {[%emt 0:00:00]} 44. Kf1 {[%emt 0:00:00]} c2 {[%emt 0:00:00]} 45. Bxc2 {[%emt 0:00:00]} Bxc2 {[%emt 0:00:00]} 46. Ke2 {[%emt 0:00:00]} Kf7 {[%emt 0:00:00]} 47. Kd2 {[%emt 0:00:00]} Be4 {[%emt 0:00:00]} 48. Ke2 {[%emt 0:00:00]} Ke6 {[%emt 0:00:00]} 49. f3 {[%emt 0:00:00]} Bc6 {[%emt 0:00:00]} 50. Kd3 {[%emt 0:00:00]} Bxf3 {[%emt 0:00:00]} 51. Kd4 {[%emt 0:00:00]} Bc6 {[%emt 0:00:00]} 52. Kc5 {[%emt 0:00:00]} Be8 {[%emt 0:00:00]} 53. Kd4 {[%emt 0:00:00]} Kd6 {[%emt 0:00:00]} 54. e4 {[%emt 0:00:00]} fxe4 {[%emt 0:00:00]} 55. Kxe4 {[%emt 0:00:00]} Ke6 {[%emt 0:00:00]} 56. g4 {[%emt 0:00:00]} Bg6+ {[%emt 0:00:00]} 57. Kd4 {[%emt 0:00:00]} h5 {[%emt 0:00:00]} 58. g5 {[%emt 0:00:00]} fxg5 {[%emt 0:00:00]} 59. hxg5 {[%emt 0:00:00]} Kf5 {[%emt 0:00:00]} 60. Kc5 {[%emt 0:00:00]} Be8 {[%emt 0:00:00]} 61. g6 {[%emt 0:00:00]} Kxg6 {[%emt 0:00:00]} 62. Kd4 {[%emt 0:00:00]} h4 {[%emt 0:00:00]} 63. Ke3 {[%emt 0:00:00]} Kf5 {[%emt 0:00:00]} 64. Kf2 {[%emt 0:00:00]} Ke4 {[%emt 0:00:00]} 65. Kg2 {[%emt 0:00:00]} Bd7 {[%emt 0:00:00]} 66. Kh2 {[%emt 0:00:00]} Kd4 {[%emt 0:00:00]} 67. Kg2 {[%emt 0:00:00]} Kc4 {[%emt 0:00:00]} 68. Kh2 {[%emt 0:00:00]} Kb3 {[%emt 0:00:00]} 69. Kg2 {[%emt 0:00:00]} Kxa3 {[%emt 0:00:00]} 70. Kh2 {[%emt 0:00:00]} Kxb4 {[%emt 0:00:00]} 71. Kg2 {[%emt 0:00:00]} Kc3 {[%emt 0:00:00]} 72. Kh2 {[%emt 0:00:00]} Kd3 {[%emt 0:00:00]} 73. Kg2 {[%emt 0:00:00]} Ke3 {[%emt 0:00:00]} 74. Kh2 {[%emt 0:00:00]} Kf2 {[%emt 0:00:00]} 75. Kh1 {[%emt 0:00:00]} b4 {[%emt 0:00:00]} 76. Kh2 {[%emt 0:00:00]} h3 {[%emt 0:00:00]} 77. Kh1 {[%emt 0:00:00]} b3 {[%emt 0:00:00]} 78. Kh2 {[%emt 0:00:00]} b2 {[%emt 0:00:00]} 79. Kh1 {[%emt 0:00:00]} b1=Q+ {[%emt 0:27:30]} 80. Kh2 {[%emt 0:00:00]} Qg1# {[%emt 0:00:00]} 0-1